bitfinex/quotes_BTCUSD_20220405
["timestamp","ask_amount","ask_price","bid_price","bid_amount"]
[1649185216206,0.00889907,45898.0,45896.0,0.003]
[1649185216507,0.054475,45899.0,45896.0,0.003]
[1649185216707,0.01359676,45900.0,45896.0,0.003]
[1649185217111,0.01359676,45900.0,45896.0,0.18100214]
[1649185217214,0.01359676,45900.0,45897.0,0.17800214]
[1649185217708,0.00889907,45898.0,45897.0,0.17800214]
[1649185217859,0.00889907,45898.0,45897.0,0.4221162]
[1649185218896,0.00889907,45898.0,45897.0,0.24411406]
[1649185219598,0.01569745,45898.0,45897.0,0.24411406]
[1649185219701,0.01569745,45898.0,45896.0,0.003]
[1649185219798,0.02249583,45898.0,45896.0,0.003]
[1649185219898,0.01359676,45898.0,45897.0,0.1780287]
[1649185220101,0.01549632,45898.0,45897.0,0.1780287]
[1649185220205,0.01549632,45898.0,45896.0,0.003]
[1649185220401,0.01359676,45898.0,45896.0,0.003]
[1649185220704,0.01359676,45898.0,45896.0,0.1810287]
[1649185221555,0.00699951,45897.0,45896.0,0.003]
[1649185221655,0.00889907,45897.0,45896.0,0.1810287]
[1649185222242,0.00889907,45897.0,45896.0,0.003]
[1649185222441,0.00889907,45897.0,45896.0,0.18103604]
[1649185222843,0.00882787,45897.0,45896.0,0.18103604]
[1649185223041,0.00189956,45897.0,45896.0,0.23103604]
[1649185223245,0.00882787,45897.0,45896.0,0.23103604]
[1649185223650,0.00882787,45897.0,45896.0,0.23105204]
[1649185224197,0.00882787,45897.0,45896.0,0.053]
[1649185224395,0.00882787,45897.0,45896.0,0.003]
[1649185224897,0.01562625,45897.0,45896.0,0.003]
[1649185225095,0.02242463,45897.0,45896.0,0.003]
[1649185226340,0.02242463,45897.0,45895.0,0.17650267]
[1649185226591,0.2718586,45906.0,45897.0,0.00896453]
[1649185226694,0.2718586,45906.0,45898.0,0.17806061]
[1649185226791,0.2718586,45906.0,45899.0,0.17806061]
[1649185227194,0.22059471,45905.0,45899.0,0.17806061]
[1649185227293,0.6991546,45906.0,45898.0,0.18054604]
[1649185227393,0.6991546,45906.0,45898.0,0.00248543]
[1649185227492,0.6991546,45906.0,45898.0,0.18054604]
[1649185227694,0.6991546,45906.0,45899.0,0.00045555]
[1649185228194,0.52110328,45906.0,45899.0,0.00045555]
[1649185228397,0.46664128,45906.0,45899.0,0.00045555]
[1649185228496,0.2173966,45906.0,45899.0,0.00045555]
[1649185228594,0.39537182,45906.0,45899.0,0.00045555]
[1649185228694,0.2173966,45906.0,45898.0,0.08248543]
[1649185228945,0.2173966,45906.0,45899.0,0.00045555]
[1649185229396,0.2173966,45906.0,45900.0,0.08]
[1649185229552,0.2173966,45906.0,45899.0,0.05491077]
[1649185229902,0.2173966,45906.0,45899.0,0.05445522]
[1649185230154,0.2173966,45906.0,45899.0,0.0549104]
[1649185230455,0.2173966,45906.0,45899.0,0.2329705]
[1649185230859,0.0073966,45906.0,45900.0,0.1780601]
[1649185230958,0.0073966,45906.0,45901.0,0.29846287]
[1649185231059,0.0073966,45906.0,45905.0,0.01101832]
[1649185231164,0.0073966,45906.0,45905.0,0.04669206]
[1649185231258,0.0073966,45906.0,45905.0,0.33363655]
[1649185231413,0.0073966,45906.0,45905.0,0.14669026]
[1649185231559,0.0073966,45906.0,45905.0,0.47791263]
[1649185231906,0.0073966,45906.0,45905.0,0.52161263]
[1649185232007,0.0073966,45906.0,45905.0,0.78788415]
[1649185232109,0.0073966,45906.0,45905.0,0.52161263]
[1649185232309,0.0073966,45906.0,45905.0,0.57604663]
[1649185232408,0.0073966,45906.0,45905.0,0.75468426]
[1649185233210,0.0073966,45906.0,45905.0,0.72990052]
[1649185233352,0.0073966,45906.0,45905.0,1.02832085]
[1649185233749,0.0073966,45906.0,45905.0,1.69252085]
[1649185234011,0.00045512,45911.0,45906.0,1.65]
[1649185234106,0.00045512,45911.0,45907.0,0.67509]
[1649185234207,0.00045512,45911.0,45908.0,0.56450273]
[1649185234303,0.00045512,45911.0,45909.0,0.01089]
[1649185234459,0.00045512,45911.0,45910.0,0.06544152]
[1649185234552,0.00045512,45911.0,45910.0,0.5992713]
[1649185234651,0.00045512,45911.0,45910.0,0.6429713]
[1649185234752,0.234,45920.0,45910.0,0.7429713]
[1649185234852,0.234,45920.0,45914.0,0.17789822]
[1649185234954,0.234,45920.0,45910.0,0.73195478]
[1649185234955,0.234,45920.0,45915.0,0.27392865]
[1649185235054,0.234,45920.0,45916.0,0.37766816]
[1649185235805,0.234,45920.0,45916.0,0.52766816]
[1649185236203,0.23420012,45920.0,45916.0,0.52766816]
[1649185236510,0.23420012,45920.0,45917.0,0.0437]
[1649185237103,0.234,45920.0,45917.0,0.0437]
[1649185241005,0.234,45920.0,45918.0,0.01089]
[1649185241666,0.234,45920.0,45917.0,0.05]
[1649185241757,0.234,45920.0,45911.0,0.01089]
[1649185242609,0.234,45920.0,45913.0,0.28029132]
[1649185242709,0.342886,45920.0,45914.0,0.01089]
[1649185243108,0.397337,45920.0,45914.0,0.01089]
[1649185243211,0.397337,45920.0,45913.0,0.15]
[1649185243314,0.00022953,45919.0,45913.0,0.15]
[1649185243411,0.000699,45919.0,45913.0,0.15]
[1649185244168,0.000699,45919.0,45913.0,0.1]
[1649185244262,0.24379197,45917.0,45913.0,0.05]
[1649185244362,0.054454,45916.0,45914.0,0.05]
[1649185244586,0.054454,45916.0,45911.0,0.01089]
[1649185245837,0.05490808,45916.0,45911.0,0.01089]
[1649185246789,0.054454,45916.0,45911.0,0.01089]
[1649185247039,0.05490808,45916.0,45911.0,0.01089]
[1649185247440,0.054457,45915.0,45911.0,0.01089]
[1649185247544,0.31342112,45915.0,45911.0,0.01089]
[1649185247640,0.42266484,45915.0,45911.0,0.01089]
[1649185248192,0.42311937,45915.0,45910.0,0.15]
[1649185248324,0.42311937,45915.0,45910.0,0.05]
[1649185248464,0.42311937,45915.0,45908.0,0.00177085]
[1649185248613,0.3,45914.0,45908.0,0.00177085]
[1649185248715,0.42311937,45915.0,45908.0,0.00177085]
[1649185249116,0.31266838,45913.0,45908.0,0.00177085]
[1649185249318,0.00032772,45912.0,45908.0,0.00177085]
[1649185249916,0.31266838,45913.0,45908.0,0.00177085]
[1649185250568,0.31312404,45913.0,45908.0,0.00177085]
[1649185250975,0.00045566,45913.0,45908.0,0.00177085]
[1649185251073,0.054455,45912.0,45908.0,0.00177085]
[1649185251175,0.00045566,45913.0,45908.0,0.00177085]
[1649185251575,0.1843,45919.0,45908.0,0.00177085]
[1649185251922,0.1843,45919.0,45917.0,0.23624136]
[1649185252156,0.9594,45920.0,45917.0,0.23624136]
[1649185252556,0.234,45920.0,45917.0,0.23624136]
[1649185253557,0.234,45920.0,45917.0,0.23124136]
[1649185254108,0.234,45920.0,45917.0,0.28124136]
[1649185254418,0.234,45920.0,45918.0,0.29041151]
[1649185254517,0.234,45920.0,45918.0,0.33939479]
[1649185255459,0.234,45920.0,45918.0,0.48939479]
[1649185255613,0.234,45920.0,45919.0,0.30928665]
[1649185255713,0.00019969,45921.0,45919.0,0.35928665]
[1649185255852,0.00019969,45921.0,45919.0,0.45928665]
[1649185255951,0.00019969,45921.0,45920.0,0.21215955]
[1649185256053,0.00019969,45921.0,45920.0,0.52164768]
[1649185256151,0.00019969,45921.0,45920.0,0.62164768]
[1649185256300,0.00019969,45921.0,45920.0,0.50948813]
[1649185256403,0.1823,45930.0,45920.0,0.50948813]
[1649185256501,0.7605,45931.0,45921.0,0.01089]
[1649185256600,0.7605,45931.0,45928.0,0.23195527]
[1649185256802,0.1894,45937.0,45928.0,0.23195527]
[1649185257452,0.1894,45937.0,45933.0,0.26841756]
[1649185257554,2.96019115,45940.0,45928.0,0.23372612]
[1649185257854,0.00020017,45935.0,45928.0,0.23372612]
[1649185258455,0.00020017,45935.0,45930.0,0.2901375]
[1649185258755,2.96019115,45940.0,45930.0,0.3401375]
[1649185259057,0.00019934,45935.0,45928.0,0.38549697]
[1649185259604,0.00019934,45935.0,45928.0,0.17192832]
[1649185259699,0.00019934,45935.0,45928.0,0.07192832]
[1649185260051,2.96019115,45940.0,45928.0,0.07192832]
[1649185260253,0.00019934,45934.0,45928.0,0.07192832]
[1649185260702,0.00019934,45934.0,45928.0,0.07369917]
[1649185261206,0.054417,45937.0,45928.0,0.07369917]
[1649185261404,0.00049101,45933.0,45928.0,0.07369917]
[1649185261756,0.00049101,45933.0,45928.0,0.07547002]
[1649185262408,0.054417,45937.0,45928.0,0.07547002]
[1649185262506,0.054417,45937.0,45928.0,0.05885425]
[1649185262608,0.00049301,45933.0,45928.0,0.05885425]
[1649185262707,0.00049301,45933.0,45928.0,0.0106251]
[1649185262810,0.05491701,45933.0,45928.0,0.0106251]
[1649185263608,0.22746367,45932.0,45928.0,0.0106251]
[1649185263811,0.33635367,45932.0,45928.0,0.01239595]
[1649185263908,0.33635367,45932.0,45921.0,0.01089]
[1649185263909,0.16556958,45930.0,45921.0,0.01089]
[1649185264012,0.054453,45928.0,45921.0,0.01089]
[1649185264614,2.47857447,45926.0,45921.0,0.01089]
[1649185264718,0.00074134,45925.0,45921.0,0.01089]
[1649185264815,0.00074134,45925.0,45921.0,0.01266085]
[1649185264919,0.05519034,45925.0,45921.0,0.01266085]
[1649185265018,0.22495484,45923.0,45921.0,0.01266085]
[1649185265273,0.054448,45924.0,45921.0,0.01266085]
[1649185265469,0.36040592,45924.0,45921.0,0.01266085]
[1649185265818,0.36040592,45924.0,45921.0,0.0144317]
[1649185266618,0.27254382,45923.0,45921.0,0.0144317]
[1649185266820,0.27254382,45923.0,45921.0,0.01620255]
[1649185267355,0.27254382,45923.0,45921.0,0.00531255]
[1649185267455,0.3,45922.0,45921.0,0.00531255]
[1649185267900,0.3,45922.0,45921.0,0.0070834]
[1649185268506,0.36040592,45924.0,45921.0,0.0070834]
[1649185268604,0.054448,45924.0,45921.0,0.0070834]
[1649185268702,0.00048962,45924.0,45921.0,0.0070834]
[1649185268901,0.00048962,45924.0,45921.0,0.00885425]
[1649185269602,2.47857447,45926.0,45921.0,0.00885425]
[1649185269807,0.00049084,45925.0,45921.0,0.00885425]
[1649185269951,0.00049084,45925.0,45921.0,0.0106251]
[1649185270052,0.00049084,45925.0,45922.0,0.00035587]
[1649185270311,0.00049084,45925.0,45921.0,0.0106251]
[1649185270607,0.00049084,45925.0,45924.0,0.27720239]
[1649185270706,0.00049084,45925.0,45921.0,0.00885425]
[1649185270816,0.23549022,45931.0,45921.0,0.00885425]
[1649185271106,0.00049084,45925.0,45921.0,0.00885425]
[1649185271860,0.00049084,45925.0,45922.0,0.30572311]
[1649185271958,0.28749759,45932.0,45922.0,0.30572311]
[1649185272058,0.20033673,45931.0,45922.0,0.30572311]
[1649185272258,0.00049084,45925.0,45922.0,0.30572311]
[1649185272609,0.00049084,45925.0,45922.0,0.30749396]
[1649185273161,0.054428,45933.0,45922.0,0.30749396]
[1649185273263,0.26525291,45932.0,45922.0,0.00177085]
[1649185273512,0.00046989,45926.0,45922.0,0.00177085]
[1649185273612,0.00046989,45926.0,45922.0,0.0035417]
[1649185274316,0.00046989,45926.0,45922.0,0.31348424]
[1649185274413,0.23252558,45930.0,45922.0,0.31348424]
[1649185274652,0.00046988,45926.0,45922.0,0.31525509]
[1649185274956,0.00046988,45926.0,45922.0,0.00531255]
[1649185275053,0.00046988,45926.0,45922.0,0.0035417]
[1649185275154,0.00046988,45926.0,45922.0,0.00231255]
[1649185275604,0.05443,45929.0,45922.0,0.00231255]
[1649185275706,0.05443,45929.0,45922.0,0.0040834]
[1649185275854,0.00046988,45926.0,45922.0,0.0040834]
[1649185276757,0.408874,45928.0,45922.0,0.00585425]
[1649185277110,0.00045495,45926.0,45922.0,0.00585425]
[1649185277260,0.31790741,45925.0,45922.0,0.00585425]
[1649185277808,0.31790741,45925.0,45922.0,0.0076251]
[1649185278894,0.31790741,45925.0,45922.0,0.00939595]
[1649185280401,0.31613656,45925.0,45922.0,0.00939595]
[1649185283931,0.00045647,45926.0,45922.0,0.00939595]
[1649185284031,0.054435,45925.0,45922.0,0.00939595]
[1649185284978,0.00045631,45926.0,45922.0,0.00939595]
[1649185285180,0.05443,45929.0,45922.0,0.00939595]
[1649185285481,0.00045631,45926.0,45922.0,0.00939595]
[1649185286016,0.17103928,45932.0,45924.0,0.4]
[1649185286113,0.17103928,45932.0,45923.0,0.054419]
[1649185286713,0.17103928,45932.0,45931.0,0.23213877]
[1649185286812,0.01535986,45935.0,45925.0,0.29877411]
[1649185286915,0.01535986,45935.0,45928.0,0.24469442]
[1649185287113,0.01535986,45935.0,45925.0,0.1]
[1649185287215,0.01535986,45935.0,45925.0,0.01089]
[1649185287313,0.01535986,45935.0,45925.0,0.06089]
[1649185287565,0.01535986,45935.0,45925.0,0.01089]
[1649185287868,0.00045663,45932.0,45925.0,0.01089]
[1649185288269,0.054425,45931.0,45925.0,0.01089]
[1649185288970,0.054425,45931.0,45926.0,0.27866378]
[1649185289069,0.00045665,45930.0,45926.0,0.32866378]
[1649185289268,0.00045665,45930.0,45926.0,0.42866378]
[1649185289603,0.00045665,45930.0,45926.0,0.25087043]
[1649185290056,0.054425,45931.0,45926.0,0.25087043]
[1649185290258,0.00045665,45930.0,45926.0,0.25087043]
[1649185290355,0.00045665,45930.0,45926.0,0.15087043]
[1649185291155,0.00045665,45930.0,45925.0,0.01089]
[1649185291256,0.054425,45931.0,45925.0,0.01089]
[1649185291406,0.00045626,45930.0,45925.0,0.01089]
[1649185292205,0.00045626,45930.0,45927.0,0.30102372]
[1649185292308,0.00045626,45930.0,45927.0,0.40102372]
[1649185292408,0.054425,45931.0,45927.0,0.40102372]
[1649185292608,0.05488126,45931.0,45927.0,0.1]
[1649185293649,0.05488126,45931.0,45925.0,0.01089]
[1649185293650,0.054425,45931.0,45925.0,0.01089]
[1649185293852,0.05488126,45931.0,45925.0,0.01089]
[1649185294806,0.054425,45931.0,45925.0,0.01089]
[1649185295006,0.0004563,45930.0,45925.0,0.01089]
[1649185295758,0.0004563,45930.0,45925.0,0.01019]
[1649185295858,0.0004563,45930.0,45924.0,0.1]
[1649185295859,0.054443,45929.0,45924.0,0.1]
[1649185295960,0.054443,45929.0,45920.0,0.1]
[1649185296058,0.217771,45929.0,45920.0,0.11089]
[1649185296159,0.217771,45929.0,45919.0,0.01089]
[1649185296256,0.217771,45929.0,45917.0,0.18875582]
[1649185296357,0.217771,45929.0,45917.0,0.01089]
[1649185296456,0.39560449,45929.0,45917.0,0.01089]
[1649185296557,0.39560449,45929.0,45916.0,0.01089]
[1649185296760,2.33712317,45924.0,45916.0,0.01089]
[1649185296858,0.05445,45923.0,45917.0,0.251855]
[1649185296959,0.05445,45923.0,45918.0,0.01089]
[1649185297080,0.05445,45923.0,45916.0,0.01089]
[1649185297181,0.05445,45923.0,45916.0,0.18875582]
[1649185297282,0.108902,45923.0,45916.0,0.18875582]
[1649185297387,0.05445,45923.0,45916.0,0.18875582]
[1649185297683,0.00045629,45928.0,45917.0,0.17786582]
[1649185297784,0.00045629,45928.0,45918.0,0.18875582]
[1649185297887,0.00045629,45928.0,45917.0,0.17786582]
[1649185297990,0.00045629,45928.0,45918.0,0.01089]
[1649185298187,0.00045629,45928.0,45918.0,0.18875582]
[1649185298289,0.00045629,45928.0,45924.0,0.3056591]
[1649185298387,0.17783349,45931.0,45924.0,0.3056591]
[1649185298587,0.17783349,45932.0,45924.0,0.3056591]
[1649185298688,0.0004563,45928.0,45924.0,0.3056591]
[1649185299637,0.27467326,45932.0,45924.0,0.3056591]
[1649185299837,0.00045631,45928.0,45924.0,0.3056591]
[1649185300803,0.18008436,45933.0,45924.0,0.3056591]
[1649185301054,0.00045631,45928.0,45924.0,0.3056591]
[1649185302057,0.18008436,45933.0,45923.0,0.23712507]
[1649185302255,0.00045631,45928.0,45923.0,0.23712507]
[1649185302358,0.05488631,45928.0,45920.0,0.27786582]
[1649185302859,0.05488631,45928.0,45920.0,0.1]
[1649185302956,0.05488631,45928.0,45920.0,0.27786582]
[1649185303061,0.05488631,45928.0,45920.0,0.1]
[1649185303207,0.27904785,45925.0,45920.0,0.1]
[1649185303306,0.27904785,45925.0,45919.0,0.17786582]
[1649185303407,0.27904785,45925.0,45919.0,0.20996582]
[1649185304013,0.108886,45924.0,45919.0,0.20996582]
[1649185304110,0.108886,45924.0,45919.0,0.0321]
[1649185307066,0.05444483,45923.0,45919.0,0.0321]
[1649185307516,0.108886,45924.0,45919.0,0.0321]
[1649185310466,0.108886,45924.0,45919.0,0.03253023]
[1649185310764,0.108886,45924.0,45919.0,0.0321]
[1649185311715,0.10869851,45924.0,45919.0,0.0321]
[1649185313191,0.10869851,45924.0,45919.0,0.03270439]
[1649185313437,0.10869851,45924.0,45919.0,0.0321]
[1649185315817,0.11091869,45924.0,45919.0,0.0321]
[1649185315907,0.11091869,45924.0,45919.0,0.20996582]
[1649185316009,0.11091869,45924.0,45919.0,0.0321]
[1649185316511,0.11307842,45924.0,45919.0,0.0321]
[1649185316810,0.1152986,45924.0,45919.0,0.0321]
[1649185317113,0.00660009,45924.0,45919.0,0.0321]
[1649185317211,0.00660009,45924.0,45919.0,0.20996582]
[1649185317512,0.00875982,45924.0,45919.0,0.20996582]
[1649185317815,0.01098,45924.0,45919.0,0.20996582]
[1649185318518,0.01313973,45924.0,45919.0,0.20996582]
[1649185318815,0.01535991,45924.0,45919.0,0.20996582]
[1649185319017,0.06979191,45924.0,45919.0,0.20996582]
[1649185319563,0.07195164,45924.0,45919.0,0.20996582]
[1649185319667,0.108862,45931.0,45929.0,0.09374626]
[1649185319765,0.1777737,45930.0,45929.0,0.09374626]
[1649185320267,0.4777737,45930.0,45929.0,0.09374626]
[1649185320369,0.3,45930.0,45929.0,0.09374626]
[1649185320668,0.3,45930.0,45929.0,0.09074626]
[1649185320873,0.3437,45930.0,45929.0,0.09074626]
[1649185320971,0.3437,45930.0,45914.0,0.17786582]
[1649185320972,0.00215973,45924.0,45914.0,0.17786582]
[1649185321072,0.054461,45923.0,45913.0,0.17786582]
[1649185321169,0.054463,45921.0,45912.0,0.17786582]
[1649185321268,0.17416632,45916.0,45912.0,0.17786582]
[1649185321372,0.35446489,45915.0,45912.0,0.17786582]
[1649185321472,0.05446489,45915.0,45911.0,0.17786582]
[1649185321571,0.05446489,45915.0,45909.0,0.17786582]
[1649185321671,0.05446489,45915.0,45910.0,0.27260939]
[1649185322472,0.05446489,45915.0,45908.0,0.17786582]
[1649185322676,0.17942644,45913.0,45908.0,0.17786582]
[1649185322775,0.17942644,45913.0,45907.0,0.17786582]
[1649185323175,0.17942644,45913.0,45907.0,0.18875582]
[1649185323308,0.17942644,45913.0,45907.0,0.17786582]
[1649185323813,0.054463,45912.0,45908.0,0.00052552]
[1649185323963,0.05446494,45911.0,45908.0,0.00052552]
[1649185324065,0.35446494,45911.0,45908.0,0.00052552]
[1649185324868,0.35446494,45911.0,45902.0,0.17786582]
[1649185324968,0.35446494,45911.0,45901.0,0.22011669]
[1649185324969,0.25267213,45910.0,45901.0,0.22011669]
[1649185325066,0.35446494,45911.0,45907.0,0.00052553]
[1649185325169,0.05884485,45911.0,45907.0,0.00052553]
[1649185326017,0.05884485,45911.0,45901.0,0.001]
[1649185326118,0.35884485,45911.0,45901.0,0.001]
[1649185326216,0.36322476,45911.0,45907.0,0.00052553]
[1649185326968,0.58347553,45911.0,45907.0,0.00052553]
[1649185327251,0.58785544,45911.0,45901.0,0.25290976]
[1649185327356,0.36760467,45911.0,45901.0,0.25290976]
[1649185327450,0.06760467,45911.0,45907.0,0.00052553]
[1649185328301,0.07198458,45911.0,45907.0,0.00052553]
[1649185328401,0.07198458,45911.0,45901.0,0.001]
[1649185328653,0.07198458,45911.0,45907.0,0.00050652]
[1649185329355,0.07636449,45911.0,45907.0,0.00050652]
[1649185329604,0.07636449,45911.0,45901.0,0.001]
[1649185329706,0.07636449,45911.0,45907.0,0.24342696]
[1649185329805,0.07636449,45911.0,45907.0,0.24393348]
[1649185330004,0.02189955,45911.0,45907.0,0.24393348]
[1649185330307,0.02405928,45911.0,45907.0,0.24393348]
[1649185330403,0.02627946,45911.0,45908.0,0.24894731]
[1649185331360,0.02843919,45911.0,45908.0,0.24894731]
[1649185331461,0.03065937,45911.0,45908.0,0.24894731]
[1649185332161,0.02849964,45911.0,45908.0,0.24894731]
[1649185332461,0.03071982,45911.0,45908.0,0.24894731]
[1649185333166,0.03071982,45911.0,45910.0,0.05]
[1649185333464,0.03294,45911.0,45910.0,0.05]
[1649185334169,0.03509973,45911.0,45910.0,0.05]
[1649185334604,0.03731991,45911.0,45910.0,0.05]
[1649185335506,0.03954009,45911.0,45910.0,0.05]
[1649185335706,0.03954009,45911.0,45909.0,0.05]
[1649185336214,0.04169982,45911.0,45909.0,0.05]
[1649185336310,0.03947964,45911.0,45909.0,0.05]
[1649185336461,0.34142413,45911.0,45909.0,0.05]
[1649185336760,0.34142413,45911.0,45908.0,0.00048896]
[1649185336861,0.31643372,45910.0,45906.0,0.05]
[1649185337011,0.05446563,45909.0,45906.0,0.05]
[1649185337111,0.05446563,45909.0,45908.0,0.00048896]
[1649185338063,0.05446563,45909.0,45905.0,0.05]
[1649185338321,0.05884554,45909.0,45906.0,0.00048897]
[1649185338716,0.05884554,45909.0,45906.0,0.05048897]
[1649185339214,0.05884554,45909.0,45906.0,0.05]
[1649185339312,0.06322545,45909.0,45906.0,0.05]
[1649185339713,0.06322545,45909.0,45907.0,0.05]
[1649185340367,0.06760536,45909.0,45907.0,0.05]
[1649185340769,0.06760536,45909.0,45905.0,0.05]
[1649185341170,0.11760536,45909.0,45905.0,0.05]
[1649185341369,0.12198527,45909.0,45905.0,0.05]
[1649185341671,0.12198527,45909.0,45905.0,0.04992184]
[1649185341875,0.12198527,45909.0,45905.0,0.05044693]
[1649185342214,0.07198527,45909.0,45905.0,0.05044693]
[1649185342415,0.07420545,45909.0,45905.0,0.05044693]
[1649185342515,0.07636518,45909.0,45905.0,0.05044693]
[1649185342814,0.07636518,45909.0,45905.0,0.04992184]
[1649185343065,0.07636518,45909.0,45905.0,0.05044693]
[1649185343464,0.07858536,45909.0,45905.0,0.05044693]
[1649185343564,0.08074509,45909.0,45905.0,0.05044693]
[1649185344016,0.08074509,45909.0,45905.0,0.04992184]
[1649185344115,0.13074509,45909.0,45905.0,0.04992184]
[1649185344217,0.13074509,45909.0,45905.0,0.05044693]
[1649185344522,0.13296527,45909.0,45905.0,0.05044693]
[1649185344719,0.07849964,45909.0,45905.0,0.35954901]
[1649185345018,0.02849964,45909.0,45908.0,0.05]
[1649185345221,0.02849964,45909.0,45908.0,0.30350045]
[1649185345319,0.02849964,45909.0,45908.0,0.30134072]
[1649185345523,0.03071982,45909.0,45908.0,0.30134072]
[1649185346544,0.03294,45909.0,45908.0,0.30134072]
[1649185347544,0.03516018,45909.0,45908.0,0.30134072]
[1649185348296,0.03294,45909.0,45908.0,0.30134072]
[1649185348495,0.03294,45909.0,45908.0,0.04784027]
[1649185349298,0.03294,45909.0,45908.0,0.04562009]
[1649185349399,0.03294,45909.0,45906.0,0.00046679]
[1649185349670,0.03294,45909.0,45906.0,0.00022012]
[1649185349768,0.29114542,45909.0,45906.0,0.00022012]
[1649185350069,0.29114542,45909.0,45901.0,0.001]
[1649185351021,0.054471,45907.0,45901.0,0.001]
[1649185351121,0.054471,45906.0,45901.0,0.001]
[1649185351223,0.054471,45905.0,45901.0,0.001]
[1649185353806,0.054471,45906.0,45901.0,0.00149276]
[1649185354357,0.16341322,45906.0,45901.0,0.00149276]
[1649185354810,0.16341322,45906.0,45901.0,0.001]
[1649185354907,0.10894154,45906.0,45901.0,0.001]
[1649185355007,0.10894154,45906.0,45901.0,0.00150135]
[1649185355609,0.16341354,45906.0,45901.0,0.00150135]
[1649185355712,0.10894154,45906.0,45901.0,0.00150135]
[1649185356063,0.10894154,45906.0,45901.0,0.001]
[1649185356263,0.10894154,45906.0,45901.0,0.00150135]
[1649185357281,0.10894154,45906.0,45901.0,0.001]
[1649185357480,0.10894154,45906.0,45901.0,0.00150135]
[1649185358433,0.10894154,45906.0,45901.0,0.001]
[1649185358636,0.10894154,45906.0,45901.0,0.00147251]
[1649185358737,0.1107928,45906.0,45901.0,0.00147251]
[1649185359637,0.1107928,45906.0,45901.0,0.001]
[1649185359742,0.11088394,45906.0,45901.0,0.001]
[1649185359838,0.11088394,45906.0,45901.0,0.00147251]
[1649185360816,0.11088394,45906.0,45901.0,0.001]
[1649185360817,0.11097508,45906.0,45901.0,0.001]
[1649185361010,0.11097508,45906.0,45901.0,0.00147251]
[1649185361809,0.11282634,45906.0,45901.0,0.00147251]
[1649185362009,0.11282634,45906.0,45901.0,0.001]
[1649185362212,0.0583558,45906.0,45901.0,0.00145695]
[1649185362363,0.0038848,45906.0,45901.0,0.00145695]
[1649185362862,0.00573606,45906.0,45901.0,0.00145695]
[1649185363064,0.00573606,45906.0,45901.0,0.01234695]
[1649185363164,0.00573606,45906.0,45901.0,0.19021277]
[1649185363265,0.00573606,45906.0,45905.0,0.21240255]
[1649185363363,0.00573606,45906.0,45905.0,0.46883256]
[1649185363761,0.00573606,45906.0,45905.0,0.25643001]
[1649185363864,0.0058272,45906.0,45905.0,0.25643001]
[1649185364366,0.0058272,45906.0,45905.0,0.43429583]
[1649185364467,0.0058272,45906.0,45905.0,0.25643001]
[1649185364810,0.0058272,45906.0,45905.0,0.46972115]
[1649185364912,0.00767846,45906.0,45905.0,0.46972115]
[1649185365111,0.00767846,45906.0,45905.0,0.64758697]
[1649185365562,0.00767846,45906.0,45905.0,0.74758697]
[1649185365664,0.00767846,45906.0,45905.0,0.56972115]
[1649185365965,0.0077696,45906.0,45905.0,0.56972115]
[1649185366114,0.0077696,45906.0,45905.0,0.74771824]
[1649185366414,0.0077696,45906.0,45905.0,0.27799709]
[1649185366664,0.00943439,45906.0,45905.0,0.17799709]
[1649185366968,0.01128565,45906.0,45905.0,0.17799709]
[1649185367169,0.01128565,45906.0,45904.0,0.17799709]
[1649185368022,0.01313691,45906.0,45904.0,0.17799709]
[1649185369061,0.01498817,45906.0,45905.0,0.17799709]
[1649185370066,0.01507931,45906.0,45905.0,0.17799709]
[1649185370364,0.01507931,45906.0,45905.0,0.17577691]
[1649185370464,0.01507931,45906.0,45905.0,0.34938154]
[1649185370667,0.01507931,45906.0,45905.0,0.39938154]
[1649185370769,0.00166599,45907.0,45906.0,0.00362163]
[1649185370865,0.00166599,45907.0,45906.0,0.76951929]
[1649185370969,0.00166599,45907.0,45906.0,0.26951929]
[1649185371164,0.00351725,45907.0,45906.0,0.26951929]
[1649185372207,0.00360839,45907.0,45906.0,0.26951929]
[1649185372505,0.00360839,45907.0,45906.0,0.01451163]
[1649185373209,0.00369953,45907.0,45906.0,0.01451163]
[1649185373358,0.00369953,45907.0,45906.0,0.26948432]
[1649185373457,0.00369953,45907.0,45906.0,0.01451163]
[1649185373659,0.00536442,45907.0,45906.0,0.01451163]
[1649185374158,0.00536442,45907.0,45906.0,0.31451163]
[1649185374258,0.00545556,45907.0,45906.0,0.31451163]
[1649185374358,0.00545556,45907.0,45906.0,0.41451163]
[1649185375264,0.00730682,45907.0,45906.0,0.41451163]
[1649185376317,0.00739796,45907.0,45906.0,0.41451163]
[1649185376519,0.00739796,45907.0,45906.0,0.6933108]
[1649185377321,0.0074891,45907.0,45906.0,0.6933108]
[1649185377771,0.00649076,45907.0,45906.0,0.41451163]
[1649185378378,0.00834202,45907.0,45906.0,0.41451163]
[1649185378774,0.00834202,45907.0,45906.0,0.6406133]
[1649185379374,0.01019328,45907.0,45906.0,0.6406133]
[1649185379720,0.03055865,45917.0,45906.0,0.87148867]
[1649185379817,0.03055865,45917.0,45907.0,0.01089]
[1649185380268,0.054455,45915.0,45907.0,0.01089]
[1649185380466,0.05630626,45915.0,45907.0,0.01089]
[1649185380666,0.054455,45914.0,45907.0,0.01089]
[1649185381069,0.108916,45914.0,45907.0,0.01089]
[1649185381269,0.21784,45914.0,45907.0,0.01089]
[1649185381471,0.21969126,45914.0,45907.0,0.01089]
[1649185382470,0.2197824,45914.0,45907.0,0.01089]
[1649185382570,0.054461,45912.0,45907.0,0.01089]
[1649185382771,0.054461,45912.0,45906.0,0.334497]
[1649185382772,0.054461,45912.0,45906.0,0.345387]
[1649185382872,0.054461,45912.0,45906.0,0.334497]
[1649185382974,0.05446507,45911.0,45906.0,0.234497]
[1649185383075,0.108933,45910.0,45906.0,0.234497]
[1649185383510,0.10902414,45910.0,45906.0,0.234497]
[1649185383611,0.05455714,45910.0,45906.0,0.00362163]
[1649185384562,0.0564084,45910.0,45906.0,0.00362163]
[1649185385468,0.0019424,45910.0,45906.0,0.00362163]
[1649185385568,0.00203354,45910.0,45906.0,0.00362163]
[1649185385865,0.00203354,45910.0,45906.0,0.30362163]
[1649185386566,0.0038848,45910.0,45906.0,0.30362163]
[1649185387258,0.0038848,45910.0,45906.0,0.00362163]
[1649185387659,0.00397594,45910.0,45906.0,0.00362163]
[1649185388262,0.0038848,45910.0,45906.0,0.00362163]
[1649185389267,0.00212468,45910.0,45906.0,0.00362163]
[1649185389615,0.00212468,45910.0,45906.0,0.18160359]